bitfinex/quotes_ETHUSD_20250721
["timestamp","ask_amount","ask_price","bid_price","bid_amount"]
[1753116272689,0.132,3778.5,3778.4,3.4732229]
[1753116272880,3.02643841,3779.7,3779.5,2.64585088]
[1753116273075,0.132,3779.5,3778.9,2.64621443]
[1753116273290,5.33528384,3779.6,3778.4,0.8266]
[1753116273291,0.02643841,3779.4,3778.4,0.8266]
[1753116273497,0.02643841,3779.4,3779.0,2.64614552]
[1753116273812,0.02643841,3779.4,3779.3,2.64599264]
[1753116274197,0.02643841,3779.5,3779.4,2.64586821]
[1753116274801,0.22365539,3779.5,3779.4,2.64586821]
[1753116275009,7.34343841,3779.5,3779.4,2.64586821]
[1753116275302,7.316,3779.5,3779.4,2.64586821]
[1753116275487,3.0,3779.4,3778.4,0.8266]
[1753116275687,1.27663841,3779.3,3778.8,2.64629011]
[1753116275888,3.0,3779.1,3778.0,0.4376]
[1753116276074,0.02643841,3779.0,3778.9,2.64627272]
[1753116277106,0.02643841,3779.0,3778.0,3.0844975]
[1753116277291,3.0,3778.8,3778.6,2.64644133]
[1753116277609,0.77757384,3778.9,3778.8,2.64634275]
[1753116277908,0.83302838,3779.4,3779.2,2.64600746]
[1753116278104,0.83302838,3779.4,3779.3,2.64599264]
[1753116278268,0.19858613,3779.5,3779.4,2.64592263]
[1753116278466,0.4343,3780.4,3780.3,2.6452927]
[1753116278675,0.19886168,3780.4,3780.3,2.6452927]
[1753116278894,4.313,3780.4,3780.3,2.6452927]
[1753116279167,0.4343,3780.8,3780.7,2.64501282]
[1753116279168,0.19957594,3780.8,3780.7,2.64501282]
[1753116279374,0.02643841,3780.8,3780.7,2.64501282]
[1753116279571,0.02643841,3780.8,3779.7,0.46405712]
[1753116279572,3.02643841,3780.8,3779.7,0.4376]
[1753116279767,7.312,3780.7,3780.6,2.64508279]
[1753116280196,4.31,3780.7,3780.6,2.64508279]
[1753116280569,3.02643841,3780.9,3780.8,2.64494286]
[1753116280570,3.0,3780.9,3780.8,2.64494286]
[1753116280770,4.31,3780.9,3780.8,2.64494286]
[1753116281515,6.348,3781.0,3780.9,2.64487291]
[1753116281833,0.64934234,3782.8,3781.0,0.7805]
[1753116281979,0.4343,3782.6,3782.1,2.6439775]
[1753116282169,3.0,3782.4,3781.1,0.4376]
[1753116282374,3.0,3782.4,3782.2,2.64389572]
[1753116282621,3.0,3782.4,3781.1,0.4376]
[1753116282622,0.46073841,3782.3,3781.2,2.64466306]
[1753116282821,3.0,3782.1,3781.0,0.7805]
[1753116283008,0.55,3781.9,3780.5,3.42562795]
[1753116283211,3.0,3781.5,3780.5,0.7805]
[1753116283520,3.0,3781.3,3780.8,2.64487997]
[1753116283724,0.8106,3781.8,3780.8,2.64487997]
[1753116283725,3.0,3781.1,3780.8,2.64487997]
[1753116284019,0.02643841,3781.0,3780.9,2.64485972]
[1753116284323,0.8249,3782.5,3781.0,1.2362]
[1753116284522,0.8249,3782.5,3781.3,2.64459312]
[1753116284820,3.0,3782.3,3781.0,1.2362]
[1753116285315,3.0,3782.3,3781.1,2.64473301]
[1753116285534,3.0,3782.3,3782.2,2.64396383]
[1753116286101,3.02643841,3782.3,3782.2,2.64396383]
[1753116286471,3.86302391,3782.3,3782.1,2.64402483]
[1753116286718,0.132,3782.1,3781.0,0.7986]
[1753116286922,0.02643841,3782.0,3781.9,2.64417356]
[1753116287236,0.02643841,3782.0,3773.6,1.39301899]
[1753116287237,1.7319,3781.7,3773.6,1.39301899]
[1753116287382,1.7319,3781.7,3767.3,0.071]
[1753116287383,2.79243382,3777.1,3775.4,0.4457]
[1753116287589,14.81004523,3777.1,3775.4,0.4457]
[1753116287820,9.136073,3777.1,3775.7,0.4457]
[1753116288124,17.18991258,3777.1,3775.8,2.64843388]
[1753116288425,17.18991258,3777.1,3774.3,8.27829405]
[1753116288426,19.8394464,3777.1,3776.1,0.4457]
[1753116288588,13.14570682,3777.1,3776.1,0.4457]
[1753116288789,8.29170682,3777.1,3776.1,0.4457]
[1753116288995,10.503173,3777.1,3776.1,0.4457]
[1753116289326,13.15070682,3777.1,3776.1,0.4457]
[1753116289622,13.15070682,3777.1,3775.6,0.4457]
[1753116289984,15.13237088,3777.1,3775.6,0.4457]
[1753116290317,15.13237088,3777.1,3775.2,0.7624]
[1753116291008,10.27337088,3777.1,3775.6,0.4457]
[1753116291191,14.77347088,3777.1,3775.6,0.4457]
[1753116292639,14.77347088,3777.1,3775.2,0.7624]
[1753116292640,21.77893706,3777.1,3775.2,0.7624]
[1753116292927,21.77893706,3777.1,3776.4,0.4457]
[1753116293126,17.144173,3777.1,3776.5,2.64788504]
[1753116293315,21.982173,3777.1,3777.0,0.4467]
[1753116293510,21.981173,3777.1,3777.0,0.4467]
[1753116293707,17.144173,3777.1,3777.0,0.4467]
[1753116293910,21.980173,3777.1,3777.0,0.4467]
[1753116294121,21.976173,3777.1,3777.0,0.4467]
[1753116294692,17.144173,3777.1,3777.0,0.4467]
[1753116294994,21.972173,3777.1,3777.0,0.4467]
[1753116295589,17.144173,3777.1,3777.0,0.4467]
[1753116295885,21.973173,3777.1,3777.0,0.4467]
[1753116297155,22.81224519,3777.1,3777.0,0.001]
[1753116298027,17.98324519,3777.1,3777.0,0.001]
[1753116298230,22.79924519,3777.1,3777.0,0.001]
[1753116299368,28.44677901,3777.1,3777.0,0.001]
[1753116299543,23.63077901,3777.1,3777.0,0.001]
[1753116299731,20.98324519,3777.1,3777.0,0.001]
[1753116299927,25.78324519,3777.1,3777.0,0.001]
[1753116300443,25.78324519,3777.1,3777.0,3.09430391]
[1753116300444,4.798,3777.1,3777.0,3.09430391]
[1753116300642,0.02643841,3777.9,3777.4,2.64725533]
[1753116300873,3.0,3777.7,3777.0,0.4467]
[1753116301072,3.0,3777.5,3777.0,0.4467]
[1753116301226,7.46561141,3777.4,3777.1,2.64748557]
[1753116301435,0.132,3777.1,3777.0,0.4467]
[1753116301680,4.927,3777.1,3777.0,0.4467]
[1753116301958,7.59761141,3777.1,3777.0,0.4467]
[1753116302127,7.571173,3777.1,3777.0,0.4467]
[1753116302332,10.21870682,3777.1,3777.0,0.001]
[1753116302682,17.20984075,3777.1,3777.0,0.001]
[1753116302880,17.55674075,3777.1,3777.0,0.001]
[1753116303175,3.19774412,3776.8,3776.7,0.001]
[1753116303332,34.50535553,3776.8,3776.7,0.001]
[1753116303532,29.69391712,3776.8,3776.7,0.001]
[1753116303772,29.12370693,3776.8,3776.7,0.001]
[1753116303947,2.644173,3776.8,3776.7,3.09451422]
[1753116304148,4.784,3776.8,3776.7,0.4467]
[1753116304349,7.428173,3776.8,3776.7,3.09450926]
[1753116304535,7.428173,3776.8,3776.7,2.64880926]
[1753116305447,2.644173,3776.8,3776.7,2.64880926]
[1753116305771,5.3434173,3776.8,3776.7,2.64880926]
[1753116306064,11.00802871,3776.8,3776.7,0.001]
[1753116306372,2.644173,3776.8,3776.7,2.64881422]
[1753116306546,4.772,3776.8,3776.7,3.09451422]
[1753116306746,21.916173,3776.8,3776.7,3.09451422]
[1753116307278,17.144173,3776.8,3776.7,3.09451422]
[1753116307485,21.915173,3776.8,3776.7,3.09451422]
[1753116307954,14.5,3776.8,3776.7,3.09451422]
[1753116308151,4.763,3776.8,3776.7,3.09451422]
[1753116308368,0.02643841,3777.5,3777.4,2.64732355]
[1753116308548,4.76,3777.5,3777.4,0.4457]
[1753116308748,14.5,3777.5,3777.4,3.09302355]
[1753116309118,1.24515956,3778.3,3778.2,2.646763]
[1753116309230,6.00415956,3778.3,3778.2,3.092463]
[1753116309432,6.00415956,3778.3,3778.2,2.442463]
[1753116309679,1.24515956,3778.3,3778.2,2.442463]
[1753116309981,6.00215956,3778.3,3778.2,2.442463]
[1753116310168,1.24515956,3778.3,3778.2,2.442463]
[1753116310363,6.00015956,3778.3,3778.2,2.442463]
[1753116310868,5.99415956,3778.3,3778.2,2.442463]
[1753116311038,1e-08,3778.3,3778.2,2.442463]
[1753116311388,1e-08,3778.3,3778.2,2.46893063]
[1753116311530,6.353,3779.5,3779.4,2.64592263]
[1753116311742,20.853,3779.5,3779.4,2.64592263]
[1753116311948,0.66514318,3780.0,3779.9,2.64557263]
[1753116312213,4.743,3780.0,3779.9,3.09127263]
[1753116312500,14.5,3780.5,3780.4,2.64522272]
[1753116312648,20.48585822,3780.5,3780.4,3.09092272]
[1753116312850,15.05287013,3780.5,3780.4,3.09092272]
[1753116313059,2.18334412,3781.1,3780.4,3.09092272]
[1753116313060,0.7817,3781.7,3780.4,3.09092272]
[1753116313278,0.7817,3781.7,3781.6,2.64438332]
[1753116313579,19.50057588,3781.7,3781.6,2.64438332]
[1753116313781,17.76257588,3781.7,3781.6,2.64438332]
[1753116313983,14.5,3781.7,3781.6,2.64438332]
[1753116314144,0.002,3782.3,3782.2,2.64396383]
[1753116314347,4.737,3782.3,3782.2,2.64396383]
[1753116314578,14.502,3782.3,3782.2,2.64396383]
[1753116314971,19.235,3782.3,3782.2,2.64396383]
[1753116315282,21.1555,3782.3,3782.2,2.64396383]
[1753116316051,16.4255,3782.3,3782.2,2.64396383]
[1753116316582,21.1485,3782.3,3782.2,2.64396383]
[1753116316780,16.4255,3782.3,3782.2,3.07486383]
[1753116317098,21.1475,3782.3,3782.2,3.07486383]
[1753116317296,21.1475,3782.3,3782.2,2.64396383]
[1753116317790,21.1405,3782.3,3782.2,2.64396383]
[1753116317953,3.132,3782.2,3781.5,0.4309]
[1753116318289,3.132,3782.0,3781.8,2.64422453]
[1753116318508,4.74043841,3781.9,3781.3,2.64455213]
[1753116318779,0.132,3781.1,3781.0,2.64480296]
[1753116318956,4.842,3781.1,3781.0,2.64480296]
[1753116319158,19.342,3781.1,3781.0,2.64480296]
[1753116319357,21.2762,3781.1,3781.0,2.64480296]
[1753116319760,21.2752,3781.1,3781.0,2.64480296]
[1753116319965,24.2752,3781.1,3781.0,2.64480296]
[1753116320164,3.0,3781.0,3779.9,0.4309]
[1753116320484,3.132,3780.8,3780.0,2.64544703]
[1753116320649,16.7811,3781.1,3779.4,0.4309]
[1753116320650,0.8104,3780.5,3779.4,0.4309]
[1753116320858,3.0,3780.3,3780.1,2.64542065]
[1753116321154,7.72943841,3780.2,3780.1,2.64542065]
[1753116321375,0.132,3780.1,3780.0,2.64550264]
[1753116321584,3.0,3780.2,3780.1,2.64543266]
[1753116321775,7.701,3780.2,3780.1,3.07633266]
[1753116321970,1.08634384,3780.7,3780.6,2.64508279]
[1753116322304,4.08634384,3780.7,3780.6,2.64508279]
[1753116322511,7.696,3780.7,3780.6,3.07598279]
[1753116322805,22.195,3780.7,3780.6,3.07598279]
[1753116322970,22.194,3780.7,3780.6,3.07598279]
[1753116323172,22.194,3780.7,3780.6,2.64508279]
[1753116323361,19.194,3780.7,3780.6,2.64508279]
[1753116323893,0.132,3780.6,3780.1,0.4309]
[1753116324057,4.72043841,3780.5,3780.2,0.4309]
[1753116324559,4.72043841,3780.5,3779.6,0.4309]
[1753116324902,4.694,3780.5,3779.6,0.4309]
[1753116325217,4.72043841,3780.5,3779.6,0.4309]
[1753116325409,2.11398384,3780.4,3779.6,0.4309]
[1753116325700,3.0,3780.2,3779.6,0.4309]
[1753116325909,4.71243841,3780.1,3779.6,0.4309]
[1753116326399,0.132,3779.6,3779.4,2.64586579]
[1753116326608,4.681,3779.5,3779.4,2.64586579]
[1753116327009,0.132,3779.4,3779.3,2.64599264]
[1753116327696,0.132,3779.4,3779.3,3.07689264]
[1753116328301,0.132,3779.4,3779.3,0.4309]
[1753116328593,4.807,3779.4,3779.3,0.4309]
[1753116329508,4.807,3779.4,3779.3,3.07689264]
[1753116329663,5.1557,3779.4,3778.5,0.4309]
[1753116329999,3.02643841,3779.3,3778.5,0.4309]
[1753116330302,17.14611181,3779.2,3778.5,0.4309]
[1753116330500,0.02643841,3779.1,3778.5,0.4309]
[1753116330678,4.667,3779.1,3778.5,0.45736552]
[1753116330879,4.667,3779.1,3779.0,2.64620269]
[1753116331065,4.664,3779.1,3779.0,0.4309]
[1753116331759,4.664,3779.1,3778.5,0.4309]
[1753116331960,0.02643841,3779.0,3778.5,0.4309]
[1753116332178,4.66,3778.9,3778.6,0.4309]
[1753116332366,4.66,3778.9,3778.7,2.64634412]
[1753116332581,4.66,3778.9,3778.8,0.4309]
[1753116332871,4.66,3779.0,3778.9,2.64620328]
[1753116333062,4.66,3779.0,3778.6,0.02646482]
[1753116333276,5.126,3779.0,3778.6,0.4309]
[1753116333482,0.02643841,3778.9,3778.6,0.4309]
[1753116334103,0.02643841,3778.9,3778.1,0.4309]
[1753116334302,3.02643841,3778.9,3778.1,0.4309]
[1753116334804,4.653,3778.8,3778.5,0.001]
[1753116334983,0.02643841,3778.7,3778.5,0.4319]
[1753116335170,0.02643841,3778.7,3778.6,0.4309]
[1753116335367,4.648,3778.8,3778.6,0.4309]
[1753116335576,4.648,3778.8,3778.7,0.4309]
[1753116335777,0.7,3779.2,3779.1,2.64613267]
[1753116336020,4.647,3779.4,3779.3,2.64599264]
[1753116336217,4.647,3779.4,3779.3,3.07689264]
[1753116336404,4.647,3779.4,3779.3,0.4309]
[1753116336606,4.647,3779.4,3772.8,2.65052605]
[1753116336607,0.7771,3776.3,3772.8,2.65052605]
[1753116336819,0.7578,3775.2,3773.0,2.65041081]
[1753116337115,0.7578,3775.2,3772.9,0.45740481]
[1753116337116,3.0,3774.5,3773.1,0.4309]
[1753116337421,5.08707471,3774.4,3773.4,2.65011188]
[1753116337580,2.890477,3774.3,3773.2,0.0265027]
[1753116337775,0.02643841,3774.2,3773.2,0.0265027]
[1753116337980,22.218477,3774.1,3773.2,0.0265027]
[1753116338179,2.91691541,3774.0,3773.1,0.4309]
[1753116338407,0.7,3773.8,3773.1,0.4309]
[1753116338592,2.91691541,3773.7,3773.1,3.08122059]
[1753116338797,19.323,3773.6,3773.2,0.0265027]
[1753116339005,2.890477,3773.5,3773.1,3.10773396]
[1753116339279,2.890477,3773.5,3773.2,0.4309]
[1753116339505,14.5,3773.6,3773.5,2.65005962]
[1753116339709,0.7578,3775.2,3773.5,0.4309]
[1753116339910,3.0,3774.9,3773.7,2.64985196]
[1753116340125,3.0,3774.7,3773.6,0.02649989]
[1753116340323,0.55,3774.5,3773.0,0.4309]
[1753116340529,2.64988733,3773.8,3773.0,0.4309]
[1753116340711,6.19937036,3774.5,3772.6,2.65063143]
[1753116340712,4.85243841,3773.7,3772.6,0.4309]
[1753116341018,2.65006248,3773.5,3772.6,0.4309]
[1753116341194,4.825,3773.6,3772.7,2.67712778]
[1753116341399,4.85143841,3773.5,3772.7,0.02650621]
[1753116341598,0.02643841,3774.2,3772.8,0.4309]
[1753116341920,4.822,3774.4,3773.2,3.0]
[1753116342120,4.822,3774.4,3774.1,2.64958105]
[1753116342321,4.822,3774.4,3774.2,2.64954371]
[1753116342521,4.822,3774.4,3774.0,2.64970853]
[1753116342824,4.818,3774.5,3774.4,2.64935753]
[1753116343031,4.818,3774.5,3774.0,0.4309]
[1753116343198,0.02643841,3774.4,3774.1,0.4309]
[1753116343401,0.8119,3775.5,3774.2,0.4309]
[1753116343402,4.815,3774.6,3774.2,0.4309]
[1753116343599,4.815,3774.6,3774.3,0.4309]
[1753116343917,4.815,3774.6,3773.1,3.0265034]
[1753116343918,0.02643841,3775.4,3774.4,0.4309]
[1753116344121,4.811,3775.3,3774.6,2.64923133]
[1753116344343,3.02643841,3775.2,3774.4,0.4309]
[1753116344547,5.60625636,3775.2,3774.4,0.4309]
[1753116344746,5.60625636,3775.2,3774.4,3.08031443]
[1753116345063,2.64900662,3775.0,3774.4,0.4309]
[1753116345198,0.02643841,3774.9,3773.2,0.4309]
[1753116345401,2.64944047,3774.4,3773.3,0.026502]
[1753116345705,4.83343841,3774.3,3773.3,2.67669011]
[1753116345900,4.807,3774.2,3773.3,2.67669011]
[1753116346116,14.52643841,3774.1,3773.4,2.6501241]
[1753116346345,14.52643841,3774.1,3773.5,0.459]
[1753116346346,14.5,3774.1,3773.5,0.459]
[1753116346547,14.5,3774.1,3773.1,0.4855034]
[1753116346548,4.803,3774.0,3773.1,0.4855034]
[1753116346850,4.803,3774.0,3773.5,2.6499993]
[1753116347202,4.82943841,3774.0,3773.4,2.65008971]
[1753116347603,0.02643841,3774.0,3773.8,2.64983474]
[1753116347857,0.55,3775.4,3773.9,0.459]
[1753116348034,3.0,3775.2,3774.2,2.64951447]
[1753116348352,14.5,3774.8,3774.2,2.64950922]
[1753116348658,2.64928734,3774.6,3772.8,4.792]
[1753116348945,0.02643841,3774.5,3773.4,0.459]
[1753116349150,1.95828225,3774.5,3773.4,2.6501263]
[1753116349302,2.64955692,3774.3,3773.5,2.65001921]
[1753116349505,0.02643841,3774.2,3773.6,2.64997078]
[1753116349709,4.785,3774.1,3773.6,2.64997078]
[1753116349905,0.02643841,3774.0,3773.1,2.67680113]
[1753116350144,0.02643841,3774.0,3773.4,2.65009187]
[1753116350325,0.02643841,3774.0,3773.4,2.65012175]
[1753116350621,0.02643841,3774.0,3773.7,2.64990036]
[1753116350827,0.56844017,3774.0,3773.5,2.64999737]
[1753116351031,0.56844017,3774.0,3773.1,0.0265034]
[1753116351032,0.02643841,3774.0,3773.8,2.6498347]
[1753116351227,14.5,3773.9,3773.8,2.6498347]
[1753116351445,0.132,3773.8,3773.0,3.47580168]
[1753116351641,19.277,3773.9,3773.5,2.64999322]
[1753116351818,0.02643841,3773.8,3773.1,0.0265034]
[1753116352017,0.02643841,3773.8,3773.2,2.65021863]
[1753116352217,0.02643841,3773.8,3773.6,2.6499894]
[1753116352434,4.767,3773.7,3772.7,0.459]
[1753116352607,4.79643841,3773.6,3772.7,0.459]
[1753116352812,0.132,3772.9,3772.8,2.67705682]
[1753116353007,14.5,3773.9,3773.8,2.64984895]
[1753116353309,0.132,3773.8,3773.7,2.64991917]
[1753116353928,0.132,3773.8,3773.7,3.10891917]
[1753116354252,4.896,3773.8,3773.7,2.64991917]
[1753116354641,0.132,3773.8,3773.6,2.64991926]
[1753116354804,4.768,3773.8,3773.4,2.65012704]
[1753116355005,0.02643841,3773.7,3773.3,2.65014338]
[1753116355201,0.132,3772.9,3772.8,2.65055131]
[1753116355941,0.132,3772.9,3772.8,3.10955131]
[1753116356330,0.132,3772.9,3772.8,2.65055131]
[1753116356757,0.132,3772.9,3772.7,2.6516176]
[1753116357043,0.132,3772.9,3772.7,2.65161027]
[1753116357244,0.132,3772.9,3772.8,2.65055131]
[1753116357442,4.887,3772.9,3772.8,2.65055131]
[1753116358148,4.884,3772.9,3772.8,2.65055131]
[1753116358448,8.3727,3772.9,3772.7,0.001]
[1753116358650,4.751,3772.8,3772.7,2.65162157]
[1753116358948,4.77743841,3772.8,3772.7,2.65162157]
[1753116359262,4.77343841,3772.8,3772.7,2.65162157]
[1753116359438,0.02643841,3772.8,3772.7,2.65162157]
[1753116359635,4.77343841,3772.8,3772.7,0.001]
[1753116359837,12.46945772,3772.8,3772.7,0.001]
[1753116360038,12.68160938,3772.8,3772.7,0.001]
[1753116360239,18.88715807,3772.8,3772.7,0.001]
[1753116360417,18.55129007,3772.8,3772.7,2.65162157]
[1753116360620,23.29129007,3772.8,3772.7,0.001]
[1753116360852,27.07749293,3772.8,3772.7,0.001]
[1753116361054,5.65076209,3772.5,3772.4,0.001]
[1753116361257,5.65076209,3772.5,3769.3,9.64924062]
[1753116361258,0.55,3772.2,3769.6,0.7696]
[1753116361455,0.7841,3771.2,3769.6,1.2286]
[1753116361786,0.7841,3771.2,3770.4,2.65219689]
[1753116361787,14.5,3770.6,3770.4,2.65219689]
[1753116361958,4.76843841,3770.5,3770.4,2.65219689]
[1753116362114,0.02643841,3770.5,3770.4,2.65219689]
[1753116362319,7.1431,3771.2,3770.4,0.459]
[1753116362517,14.52643841,3771.1,3771.0,2.65181649]
[1753116362748,14.5,3771.1,3771.0,3.11081649]
[1753116362954,0.8164,3771.8,3771.7,2.65132433]
[1753116363157,0.02643841,3772.3,3771.7,0.459]
[1753116363362,0.02643841,3772.3,3771.1,2.65174617]
[1753116363363,8.22238335,3772.2,3771.1,2.65174617]
[1753116363564,8.22238335,3772.2,3770.4,0.7507]
[1753116363565,4.34910892,3772.1,3770.5,0.459]
[1753116363861,14.5,3772.0,3770.7,2.65202747]
[1753116364064,0.7788,3772.8,3771.5,0.7854]
[1753116364282,4.773,3772.7,3772.5,2.65074463]
[1753116364424,0.23914502,3772.6,3771.9,2.65111599]
[1753116364622,17.97624317,3772.6,3771.1,2.65174617]
[1753116364830,5.56233763,3772.5,3772.4,2.65083236]
[1753116365160,7.772,3772.5,3771.6,2.65139047]
[1753116365360,0.23988008,3772.4,3772.2,2.65096643]
[1753116365556,3.79311312,3772.5,3772.4,2.65083236]
[1753116365720,14.5,3772.6,3772.4,2.65083236]
[1753116365721,14.5,3772.6,3772.5,2.65076209]
[1753116365950,22.269,3772.6,3772.5,2.65076209]
[1753116366333,23.06488487,3772.6,3772.4,2.6508153]
[1753116366557,5.80444867,3772.5,3772.4,2.6508153]
[1753116366762,1.06288708,3772.5,3772.3,2.65089774]
[1753116367062,3.55529655,3772.4,3771.8,0.459]
[1753116367218,3.55529655,3772.4,3771.5,2.65146493]
[1753116367219,0.82230996,3772.3,3771.5,2.65146493]
[1753116367421,0.02643841,3772.3,3772.2,2.6509729]
[1753116367640,0.79577494,3772.3,3772.2,2.6509729]
[1753116367835,5.56077494,3772.3,3772.2,2.6509729]
[1753116368038,0.79577494,3772.3,3772.2,2.6509729]
[1753116368238,0.79577494,3772.3,3771.6,0.459]
[1753116368239,5.55898599,3772.3,3771.8,0.02651254]
[1753116368562,5.55898599,3772.3,3770.9,3.0]
[1753116368563,1.06367786,3772.2,3771.3,2.65160379]
[1753116368767,0.8205,3771.8,3771.2,2.6516666]
[1753116369066,3.0,3771.6,3769.9,0.8191]
[1753116369268,3.0,3771.1,3769.8,0.459]
[1753116369565,8.31861003,3771.0,3770.9,2.65188681]
[1753116369759,3.0,3770.9,3769.8,0.459]
[1753116369961,1.35234844,3770.8,3769.5,0.459]
[1753116370165,15.05461003,3770.7,3769.5,0.459]
[1753116370322,14.5,3770.7,3770.6,2.6520978]
[1753116370523,20.05475499,3770.7,3769.7,0.7549]
[1753116370721,0.24063132,3770.6,3770.5,2.65215761]
[1753116371236,14.5,3770.7,3770.6,2.6520978]
[1753116371547,19.256,3770.7,3770.6,3.1110978]
[1753116371750,7.05245276,3771.6,3771.4,2.65153523]
[1753116371968,4.754,3771.7,3771.6,2.65139463]
[1753116372275,0.24051752,3771.7,3771.6,2.65139463]
[1753116372476,0.79432407,3771.8,3771.7,2.65132433]
[1753116372680,0.79432407,3771.8,3771.7,3.11032433]
[1753116372849,4.99151752,3771.8,3771.7,2.65132433]
[1753116373282,0.24051752,3771.8,3771.7,2.65132433]
[1753116373452,4.98851752,3771.8,3771.7,2.65132433]
[1753116373643,0.02643841,3771.9,3771.8,2.65125404]
[1753116373844,4.744,3772.0,3771.9,2.6511391]
[1753116374045,4.744,3772.0,3771.9,3.1101391]
[1753116374636,0.58051138,3772.5,3772.4,2.65083236]
[1753116374637,0.02643841,3772.5,3772.4,2.65083236]
[1753116374837,7.05359121,3773.2,3773.1,2.65034056]
[1753116375156,11.89476754,3773.2,3773.1,2.65034056]
[1753116375464,26.39383182,3773.2,3773.1,2.65034056]
[1753116375671,3.132,3773.1,3772.4,0.459]
[1753116375870,3.132,3773.1,3771.8,0.459]
[1753116375871,0.132,3772.4,3771.8,0.459]
[1753116376057,4.734,3772.3,3772.2,2.65091959]
[1753116376253,0.132,3772.2,3772.1,2.65104318]
[1753116376459,0.02643841,3772.2,3772.1,2.65104318]
[1753116376682,4.75743841,3772.2,3772.1,2.65104318]
[1753116377487,4.75743841,3772.2,3772.0,2.65110048]
[1753116377775,0.132,3771.5,3771.0,0.7811]
[1753116377973,4.726,3771.5,3771.4,2.65153523]
[1753116378177,19.226,3771.5,3770.5,0.7811]
[1753116378477,0.02643841,3771.4,3771.0,2.65179472]
[1753116378777,0.7862,3771.3,3770.0,0.4548]
[1753116378981,0.132,3770.5,3769.6,0.001]
[1753116379140,4.719,3770.4,3769.6,0.001]
[1753116379342,4.74643841,3770.3,3769.6,0.001]
[1753116379558,2.65258734,3770.0,3769.6,0.001]
[1753116379775,4.74543841,3769.9,3769.6,0.001]
[1753116380076,3.0,3769.7,3769.6,0.001]
[1753116380277,3.02643841,3769.7,3769.6,0.001]
[1753116380876,3.37333841,3769.7,3769.6,0.001]
[1753116381076,3.58076228,3769.7,3769.6,0.001]
[1753116381273,3.37333841,3769.7,3769.6,0.001]
[1753116381479,3.97042823,3769.7,3769.6,0.001]
[1753116381676,0.02643841,3769.7,3769.6,2.65380135]
[1753116381886,4.711,3769.7,3769.6,2.65374307]
[1753116382253,4.708,3769.7,3769.6,0.001]
[1753116382456,4.706,3769.7,3769.6,2.65380135]
[1753116382766,4.707,3769.7,3769.6,0.001]
[1753116383077,0.02643841,3770.0,3769.6,0.001]
[1753116383277,4.706,3769.7,3769.6,0.001]
[1753116383868,4.703,3769.7,3769.6,0.001]
[1753116384067,9.34154384,3769.7,3769.6,0.001]
[1753116384452,9.54815975,3769.7,3769.6,0.001]
[1753116384651,8.98964384,3769.7,3769.6,0.001]
[1753116385050,12.53927482,3769.7,3769.6,0.001]
[1753116385288,13.0928057,3769.7,3769.6,0.001]
[1753116385447,8.3948057,3769.7,3769.6,0.001]
[1753116385647,12.53627482,3769.7,3769.6,0.001]
[1753116385859,13.0898057,3769.7,3769.6,0.001]
[1753116386382,13.77603073,3769.7,3769.6,0.001]
[1753116386581,17.38610991,3769.7,3769.6,0.001]
[1753116386757,21.39252684,3769.7,3769.6,0.001]
[1753116386957,8.63515964,3769.7,3769.6,0.001]
[1753116387265,10.01806516,3769.7,3769.6,0.001]
[1753116387467,9.31620248,3769.7,3769.6,0.001]
[1753116387668,9.87654384,3769.7,3769.6,0.001]
[1753116387896,4.84517472,3769.7,3769.6,0.001]
[1753116388054,0.02643841,3769.7,3769.6,2.65380135]
[1753116388254,4.71243841,3769.7,3769.6,0.001]
[1753116388661,0.02643841,3769.7,3769.6,2.65380135]
[1753116388861,4.686,3769.7,3769.6,2.65380135]
[1753116389284,4.684,3769.7,3769.6,2.65380135]
[1753116389469,4.684,3769.7,3769.2,2.65303351]
[1753116389651,3.02643841,3769.6,3768.4,0.8248]
[1753116389857,0.02643841,3769.5,3768.7,2.65338776]
[1753116390074,3.0,3769.3,3768.3,2.65369565]
[1753116390288,0.02643841,3769.2,3768.2,0.4548]
[1753116390494,0.02643841,3769.2,3769.0,2.65322366]
[1753116390665,3.38904056,3769.7,3769.0,2.65322366]
[1753116390666,0.02643841,3769.5,3769.0,2.65322366]
[1753116390866,0.02643841,3769.4,3769.0,2.65315384]
[1753116391067,3.0,3769.3,3768.8,2.65335955]
[1753116391271,0.02643841,3769.2,3769.1,2.65315327]
[1753116391659,0.02643841,3769.7,3769.5,2.65285093]
[1753116391864,3.0,3769.6,3769.5,2.65281348]
[1753116392074,0.02643841,3770.0,3769.9,2.65259025]
[1753116392274,1.23098633,3770.2,3770.1,2.65244953]
[1753116392475,1.20454792,3770.2,3770.1,3.10724953]
[1753116393709,0.02643841,3771.0,3770.9,2.65188681]
[1753116393923,4.69543841,3771.8,3770.5,0.02652168]
[1753116394225,4.69543841,3771.8,3771.0,2.65181649]
[1753116394398,4.69543841,3771.8,3771.4,2.65148201]
[1753116394399,4.666,3771.8,3771.4,2.65148201]
[1753116394566,0.02643841,3771.7,3771.6,2.65139463]
[1753116395483,0.002,3771.8,3771.7,2.65132433]
[1753116396021,0.002,3771.8,3771.7,3.10612433]
[1753116397066,0.002,3771.8,3771.7,3.90123757]
[1753116397320,0.02843841,3772.6,3772.5,2.65076209]
[1753116397321,0.002,3772.6,3772.5,2.65076209]
[1753116397766,0.002,3772.6,3772.5,2.53836209]
[1753116397966,0.002,3772.6,3772.5,2.99316209]
[1753116399318,0.134,3772.6,3772.5,3.76176209]
[1753116399963,0.134,3772.6,3772.5,0.4548]
[1753116400165,0.002,3772.2,3772.1,2.65104318]
[1753116400565,0.002,3772.2,3772.1,3.10584318]
[1753116401009,0.134,3772.2,3772.1,3.10584318]
[1753116401211,0.134,3772.2,3772.1,3.13235361]
[1753116402495,0.134,3772.2,3772.1,7.76635361]
[1753116402695,0.134,3772.2,3772.1,7.73984318]
[1753116402997,0.002,3772.6,3772.5,2.65076209]